bitfinex/quotes_ETHUSD_20250605
["timestamp","ask_amount","ask_price","bid_price","bid_amount"]
[1749122625523,6.319,2601.9,2601.8,16.0]
[1749122626737,6.317,2601.9,2601.8,19.84349296]
[1749122627112,6.317,2601.9,2601.8,29.95865296]
[1749122627443,6.317,2601.9,2601.8,22.90817596]
[1749122627601,6.317,2601.9,2601.8,22.60264696]
[1749122627943,6.315,2601.9,2601.8,22.60264696]
[1749122628096,0.02,2601.9,2601.8,22.60264696]
[1749122628305,6.315,2601.9,2601.8,14.40797963]
[1749122628504,6.315,2601.9,2601.8,6.60264696]
[1749122629304,0.02,2601.9,2601.8,6.60264696]
[1749122629545,6.313,2601.9,2601.8,6.60264696]
[1749122630242,6.313,2601.9,2601.8,2.759154]
[1749122630842,6.313,2601.9,2601.8,6.60264696]
[1749122631049,0.02,2601.9,2601.5,10.37836031]
[1749122631233,6.313,2601.9,2601.8,10.0]
[1749122631435,6.313,2601.9,2601.5,3.84391805]
[1749122631436,6.313,2601.9,2601.7,4.245319]
[1749122631634,6.313,2601.9,2601.8,8.16375]
[1749122631834,6.313,2601.9,2601.8,5.62475]
[1749122632213,6.313,2601.9,2601.8,9.46824296]
[1749122632410,0.02,2601.9,2601.8,9.46824296]
[1749122632643,6.311,2601.9,2601.8,9.46824296]
[1749122632822,0.02,2601.9,2601.8,9.46824296]
[1749122633215,6.312,2601.9,2601.8,9.46824296]
[1749122633414,6.312,2601.9,2601.8,3.84349296]
[1749122634448,6.312,2601.9,2601.7,3.84362687]
[1749122634639,6.312,2601.9,2601.5,3.84380067]
[1749122634640,6.312,2601.9,2601.5,10.37618349]
[1749122634815,6.312,2601.9,2601.7,3.84356741]
[1749122635018,6.312,2601.9,2601.8,8.923511]
[1749122635256,0.02,2601.9,2601.8,8.923511]
[1749122635456,6.309,2601.9,2601.7,23.65016524]
[1749122635654,6.309,2601.9,2601.7,17.61979441]
[1749122635857,0.02,2601.9,2601.6,3.84372934]
[1749122636163,6.288,2601.8,2601.7,19.84362181]
[1749122636667,6.288,2601.8,2601.7,25.10146681]
[1749122637330,0.02,2601.9,2601.8,16.0]
[1749122637536,6.306,2601.9,2601.8,19.84349296]
[1749122637938,6.309,2601.9,2601.8,19.84349296]
[1749122638338,6.309,2601.9,2601.8,36.56759896]
[1749122639963,6.307,2601.9,2601.8,36.56759896]
[1749122640739,0.02,2601.9,2601.8,34.01486096]
[1749122640953,6.306,2601.9,2601.8,34.01486096]
[1749122641260,0.7556,2601.7,2601.5,0.38608911]
[1749122641562,6.286,2601.6,2601.5,24.618362]
[1749122641766,6.286,2601.6,2601.5,28.46229819]
[1749122642862,6.286,2601.6,2601.5,28.8556362]
[1749122643164,6.286,2601.6,2601.5,22.798621]
[1749122643546,6.286,2601.6,2601.5,26.64255719]
[1749122643742,6.286,2601.6,2595.3,7.83]
[1749122643743,0.8159,2601.5,2600.5,1.64]
[1749122644094,0.8159,2601.5,2601.1,0.39203866]
[1749122644095,4.65983847,2601.5,2601.1,0.39203866]
[1749122644254,0.8159,2601.5,2601.1,0.39203866]
[1749122644447,4.66027951,2601.2,2601.1,0.39203866]
[1749122644681,10.94627951,2601.2,2601.1,0.39203866]
[1749122645048,7.1019,2601.2,2601.1,0.39203866]
[1749122645248,7.1029,2601.2,2601.1,6.12672666]
[1749122645448,7.1029,2601.2,2600.8,19.8448848]
[1749122645647,7.1029,2601.2,2601.1,10.0]
[1749122645842,7.1029,2601.2,2600.9,16.0]
[1749122646249,10.94738752,2601.2,2600.9,16.0]
[1749122646879,0.8159,2601.2,2601.1,10.0]
[1749122647102,7.1059,2601.2,2601.1,10.0]
[1749122647239,7.1059,2601.2,2601.1,2.755108]
[1749122647579,7.1059,2601.2,2601.0,10.0]
[1749122647755,7.1059,2601.2,2601.1,6.604909]
[1749122647957,7.1059,2601.2,2601.1,5.312909]
[1749122648157,7.1059,2601.2,2601.0,10.0]
[1749122648359,7.1059,2601.2,2601.1,10.0]
[1749122648555,7.1039,2601.2,2601.1,10.0]
[1749122648756,7.1039,2601.2,2601.0,10.0]
[1749122648950,7.1039,2601.2,2601.1,7.683957]
[1749122649385,0.8159,2601.2,2601.1,5.788799]
[1749122649546,6.29,2601.2,2601.1,5.024907]
[1749122649747,6.29,2601.2,2601.1,4.480903]
[1749122649952,6.29,2601.2,2601.1,3.946769]
[1749122650250,6.29,2601.2,2601.1,19.946769]
[1749122650988,6.29,2601.2,2601.1,16.0]
[1749122651162,10.91027951,2601.2,2601.1,16.0]
[1749122651364,7.0659,2601.2,2601.1,16.0]
[1749122651553,7.0659,2601.2,2601.1,18.630968]
[1749122652048,3.84427662,2601.3,2601.1,18.630968]
[1749122652378,3.84363898,2601.8,2601.1,12.395035]
[1749122652379,6.293,2601.2,2601.1,12.395035]
[1749122652748,0.7713,2601.6,2600.6,16.0]
[1749122652952,10.13599838,2601.5,2601.2,16.0]
[1749122653188,10.13599838,2601.5,2601.2,14.28711]
[1749122653368,10.13599838,2601.5,2601.2,7.961268]
[1749122653580,3.84399838,2601.5,2601.1,16.0]
[1749122653894,0.7713,2601.6,2601.2,3.84427991]
[1749122653895,6.292,2601.4,2601.2,3.84427991]
[1749122654099,0.7713,2601.6,2601.4,14.133808]
[1749122654384,0.7518,2601.8,2601.5,30.0]
[1749122654600,0.7518,2601.8,2601.6,18.341155]
[1749122654747,6.292,2601.7,2601.6,12.416907]
[1749122654949,6.292,2601.7,2601.6,11.847207]
[1749122655381,6.293,2601.7,2601.6,11.847207]
[1749122655582,0.02,2601.9,2601.7,21.585146]
[1749122655783,6.293,2601.8,2601.7,15.298335]
[1749122656162,0.02,2601.9,2601.7,3.84361924]
[1749122656391,0.02,2601.9,2601.8,17.987391]
[1749122656595,6.312,2601.9,2601.8,17.502791]
[1749122656754,6.312,2601.9,2601.8,16.837791]
[1749122656958,6.312,2601.9,2601.7,11.806633]
[1749122657395,0.02,2601.9,2601.8,8.162109]
[1749122657591,6.314,2601.9,2601.8,8.162109]
[1749122657771,6.314,2601.9,2601.8,28.00560196]
[1749122658088,6.313,2601.9,2601.8,28.00560196]
[1749122658870,6.314,2601.9,2601.8,28.00560196]
[1749122660498,0.02,2601.9,2601.8,28.00560196]
[1749122660803,6.311,2601.9,2601.8,28.00560196]
[1749122662399,0.02,2601.9,2601.8,28.00560196]
[1749122662803,6.309,2601.9,2601.8,28.00560196]
[1749122663656,0.02,2601.9,2601.8,28.00560196]
[1749122663895,6.307,2601.9,2601.8,28.00560196]
[1749122664298,0.02,2601.9,2601.8,28.00560196]
[1749122664499,6.307,2601.9,2601.8,28.00560196]
[1749122665499,0.02,2601.9,2601.8,28.00560196]
[1749122665909,6.305,2601.9,2601.8,28.00560196]
[1749122666270,0.02,2601.9,2601.8,28.00560196]
[1749122666500,6.305,2601.9,2601.8,28.00560196]
[1749122666980,6.304,2601.9,2601.8,28.00560196]
[1749122667182,0.02,2601.9,2601.8,28.00560196]
[1749122667495,6.304,2601.9,2601.8,28.00560196]
[1749122667875,6.303,2601.9,2601.8,28.00560196]
[1749122669229,0.02,2601.9,2601.8,28.00560196]
[1749122669375,6.301,2601.9,2601.8,28.00560196]
[1749122670671,0.02,2601.9,2601.8,28.00560196]
[1749122671089,6.302,2601.9,2601.8,28.00560196]
[1749122671987,6.301,2601.9,2601.8,28.00560196]
[1749122672181,6.301,2601.9,2601.8,28.51560196]
[1749122672407,0.02,2601.9,2601.8,28.51560196]
[1749122672610,6.3,2601.9,2601.8,21.23900306]
[1749122673513,0.02,2601.9,2601.8,21.23900306]
[1749122673711,6.299,2601.9,2601.8,21.23900306]
[1749122674006,0.02,2601.9,2601.8,21.23900306]
[1749122679517,0.6667,2602.7,2602.6,19.84231153]
[1749122679720,0.6667,2602.7,2602.6,46.86321358]
[1749122680016,0.6667,2602.7,2602.6,41.70552511]
[1749122680200,0.6667,2602.7,2602.6,35.93925906]
[1749122680516,0.6667,2602.7,2602.6,23.17901606]
[1749122681317,0.6667,2602.7,2602.6,19.50325506]
[1749122681501,6.9657,2602.7,2602.6,19.89156395]
[1749122681896,7.7187,2602.7,2602.6,4.23062042]
[1749122682222,7.7187,2602.7,2602.6,16.38830889]
[1749122682376,7.7187,2602.7,2602.5,16.0]
[1749122682579,7.7187,2602.7,2602.4,16.51]
[1749122682819,0.753,2602.6,2602.4,4.35258912]
[1749122683018,0.753,2602.6,2602.5,10.0]
[1749122683716,0.753,2602.6,2602.5,16.0]
[1749122684129,0.753,2602.6,2602.5,16.3743379]
[1749122684693,0.753,2602.6,2602.5,16.0]
[1749122685578,4.59531153,2602.6,2602.5,16.0]
[1749122685785,0.753,2602.6,2602.5,16.0]
[1749122686095,7.05,2602.6,2602.5,16.0]
[1749122686422,0.753,2602.6,2602.5,16.0]
[1749122686625,7.05,2602.6,2602.5,16.0]
[1749122689191,10.89231153,2602.6,2602.5,16.0]
[1749122689397,7.05,2602.6,2602.5,16.0]
[1749122689638,10.89231153,2602.6,2602.5,16.0]
[1749122690332,14.26834358,2602.6,2602.5,16.0]
[1749122690834,4.6373875,2602.5,2602.1,0.37564055]
[1749122691041,0.7949,2602.5,2601.9,10.51]
[1749122691198,0.7949,2602.2,2602.1,46.0]
[1749122691398,7.0869,2602.2,2602.1,46.0]
[1749122692020,10.46293205,2602.2,2602.1,16.0]
[1749122692224,0.7949,2602.2,2601.9,30.0]
[1749122692439,6.297,2602.1,2602.0,3.84319589]
[1749122692633,6.297,2602.1,2602.0,20.75964089]
[1749122692938,6.297,2602.1,2602.0,36.75964089]
[1749122693437,0.7949,2602.2,2602.1,30.506931]
[1749122693642,7.0939,2602.2,2602.1,30.506931]
[1749122693845,7.0929,2602.2,2602.1,30.506931]
[1749122696318,7.0929,2602.2,2602.1,28.607931]
[1749122697051,7.0899,2602.2,2602.1,28.607931]
[1749122697204,7.0899,2602.2,2602.1,26.172641]
[1749122697409,7.0899,2602.2,2602.1,19.8418]
[1749122698111,0.7949,2602.2,2602.1,19.8418]
[1749122698307,7.0889,2602.2,2602.1,19.8418]
[1749122698539,7.0389,2602.2,2602.1,19.8418]
[1749122699345,0.7449,2602.2,2602.1,23.68484984]
[1749122699549,6.14996711,2602.7,2602.3,16.0]
[1749122699749,0.6667,2602.7,2602.3,19.84267161]
[1749122700057,6.292,2602.6,2602.3,3.84266393]
[1749122700256,6.292,2602.6,2602.4,16.0]
[1749122700455,6.295,2602.5,2602.4,30.541448]
[1749122700660,6.295,2602.5,2602.4,28.642448]
[1749122700828,0.6667,2602.7,2602.4,28.642448]
[1749122701145,0.6667,2602.7,2602.4,19.84257483]
[1749122701513,1.4453,2602.7,2602.5,8.202155]
[1749122701912,1.4453,2602.7,2602.5,12.04461047]
[1749122702156,6.294,2602.6,2602.5,3.84245547]
[1749122702359,6.294,2602.6,2602.5,13.050448]
[1749122702531,6.294,2602.6,2602.5,8.050566]
[1749122703471,6.294,2602.6,2602.4,16.0]
[1749122703639,7.99119807,2602.5,2602.3,16.0]
[1749122703964,7.99119807,2602.5,2602.2,16.0]
[1749122703965,7.99126977,2602.5,2602.2,16.0]
[1749122705536,6.294,2602.4,2602.2,16.0]
[1749122705833,6.294,2602.4,2602.1,16.0]
[1749122706254,10.13662934,2602.4,2602.1,16.0]
[1749122706430,10.13662934,2602.4,2602.1,10.441434]
[1749122707333,6.294,2602.4,2602.1,14.28447462]
[1749122707540,0.7727,2602.5,2602.1,19.84304062]
[1749122707768,6.29,2602.3,2602.2,9.182956]
[1749122707930,0.7727,2602.5,2602.3,16.0]
[1749122708134,6.289,2602.4,2602.1,19.8429414]
[1749122708353,6.289,2602.4,2602.0,16.0]
[1749122708354,3.84276962,2602.3,2602.0,16.0]
[1749122708555,0.7796,2602.2,2602.0,16.0]
[1749122708757,6.289,2602.1,2601.9,4.79]
[1749122708971,6.289,2602.1,2602.0,16.0]
[1749122709176,6.289,2602.1,2601.8,20.22762813]
[1749122709344,7.21870331,2602.4,2601.8,20.22762813]
[1749122709345,0.6667,2602.7,2602.6,19.394954]
[1749122709544,0.6667,2602.7,2602.6,16.0]
[1749122709545,6.9757,2602.7,2602.6,16.0]
[1749122710140,5.3362639,2602.7,2602.6,16.0]
[1749122710478,7.8041,2602.7,2602.6,16.0]
[1749122710842,11.6462639,2602.7,2602.6,16.0]
[1749122711065,15.57229595,2602.7,2602.6,16.0]
[1749122717686,3.84285869,2602.3,2601.8,4.73755883]
[1749122717869,7.0578,2602.2,2601.9,3.014434]
[1749122718069,7.0578,2602.2,2602.1,19.84304984]
[1749122718280,0.8142,2602.5,2602.1,19.84304984]
[1749122718489,7.943,2602.4,2602.3,16.0]
[1749122718791,7.943,2602.4,2602.3,23.272763]
[1749122718990,6.302,2602.4,2602.3,23.272763]
[1749122719191,6.302,2602.4,2602.1,3.84304984]
[1749122719398,6.302,2602.4,2602.3,23.272763]
[1749122720097,6.301,2602.4,2602.1,3.84304984]
[1749122720262,6.301,2602.4,2602.3,23.272763]
[1749122720598,6.3,2602.4,2602.3,22.600763]
[1749122721098,0.8142,2602.5,2602.3,22.600763]
[1749122721392,6.299,2602.4,2602.3,25.875212]
[1749122722495,0.8142,2602.5,2602.3,16.0]
[1749122722660,6.297,2602.4,2602.3,27.364197]
[1749122722995,6.297,2602.4,2602.3,22.600763]
[1749122724714,6.295,2602.4,2602.3,16.0]
[1749122725001,6.295,2602.4,2602.3,25.668197]
[1749122725160,6.295,2602.4,2602.3,23.769197]
[1749122726317,4.65667619,2602.5,2602.3,23.769197]
[1749122726475,6.293,2602.4,2602.3,25.667897]
[1749122726675,6.293,2602.4,2602.3,22.400463]
[1749122728729,6.293,2602.4,2602.1,3.8430491]
[1749122728730,4.61934524,2601.9,2601.8,0.51]
[1749122728878,10.91443873,2601.9,2601.7,10.0]
[1749122729077,7.071,2601.9,2601.8,16.0]
[1749122729385,7.071,2601.9,2601.7,5.455835]
[1749122729386,7.071,2601.9,2601.7,11.991888]
[1749122731276,7.071,2601.9,2601.7,11.417809]
[1749122734000,3.0,2601.8,2601.7,27.417809]
[1749122734490,3.0,2601.8,2601.7,31.26144969]
[1749122734919,3.0,2601.8,2601.7,23.619809]
[1749122735120,3.0,2601.8,2601.7,18.993525]
[1749122735419,3.0,2601.8,2601.7,16.0]
[1749122735420,7.76745855,2601.8,2601.7,16.0]
[1749122735623,11.61095151,2601.8,2601.7,16.0]
[1749122736119,11.61095151,2601.8,2601.7,9.0]
[1749122736817,11.61095151,2601.8,2601.4,13.915795]
[1749122737017,11.61095151,2601.8,2601.3,0.51]
[1749122737018,3.84385216,2601.6,2601.3,0.51]
[1749122737323,10.88807298,2601.5,2601.3,0.51]
[1749122737529,10.88807298,2601.5,2601.2,0.66666667]
[1749122737687,3.84408395,2601.4,2601.2,0.66666667]
[1749122737890,6.288,2601.3,2601.2,10.66666667]
[1749122738118,6.288,2601.3,2601.2,0.66666667]
[1749122738119,7.043,2601.3,2601.2,0.66666667]
[1749122738287,1.8437084,2601.3,2601.2,0.66666667]
[1749122738488,7.045,2601.3,2601.2,0.66666667]
[1749122738731,6.29,2601.3,2601.2,0.66666667]
[1749122739799,3.84414049,2601.4,2601.2,0.66666667]
[1749122740096,6.289,2601.3,2601.2,0.66666667]
[1749122741127,10.13323173,2601.3,2601.2,0.66666667]
[1749122741334,16.83279372,2601.3,2601.2,0.66666667]
[1749122742111,10.54379372,2601.3,2601.2,0.66666667]
[1749122742324,18.48579372,2601.3,2601.2,0.66666667]
[1749122742501,10.54379372,2601.3,2601.2,0.66666667]
[1749122742696,18.48579372,2601.3,2601.2,0.66666667]
[1749122743624,15.10876167,2601.3,2601.2,0.66666667]
[1749122743827,18.48479372,2601.3,2601.2,0.66666667]
[1749122744231,8.7398,2601.3,2601.2,0.66666667]
[1749122744695,0.7978,2601.3,2601.2,0.66666667]
[1749122744894,6.299,2601.3,2601.2,16.66666667]
[1749122745151,6.299,2601.3,2601.2,19.72973567]
[1749122745446,6.299,2601.3,2601.2,0.66666667]
[1749122745447,10.14323173,2601.3,2601.2,0.66666667]
[1749122745734,13.51926378,2601.3,2601.2,0.66666667]
[1749122746092,15.33413691,2601.3,2601.2,0.66666667]
[1749122746288,11.95810486,2601.3,2601.2,0.66666667]
[1749122747838,3.84423173,2601.3,2601.2,0.66666667]
[1749122748046,10.14123173,2601.3,2601.2,0.66666667]
[1749122748624,13.51726378,2601.3,2601.2,0.66666667]
[1749122751011,7.22026378,2601.3,2601.2,0.66666667]
[1749122751216,13.51426378,2601.3,2601.2,0.66666667]
[1749122751616,10.13823173,2601.3,2601.2,0.66666667]
[1749122752314,6.294,2601.3,2601.2,0.66666667]
[1749122752931,10.13823173,2601.3,2601.2,0.66666667]
[1749122753839,4.3941346,2601.4,2601.2,0.66666667]
[1749122754003,0.7853,2601.5,2601.2,0.66666667]
[1749122754339,6.294,2601.4,2601.3,16.0]
[1749122755142,6.294,2601.4,2601.2,4.51104302]
[1749122755143,4.641,2601.8,2601.6,16.0]
[1749122755363,6.293,2601.7,2601.6,16.0]
[1749122755854,6.293,2601.7,2601.5,22.738858]
[1749122755855,6.294,2601.7,2601.5,16.0]
[1749122756090,6.294,2601.7,2601.6,16.0]
[1749122756415,6.294,2601.7,2601.4,3.84402263]
[1749122756416,6.294,2601.7,2601.5,20.740002]
[1749122757123,6.294,2601.7,2601.6,10.0]
[1749122757879,6.294,2601.7,2601.5,19.940756]
[1749122759648,6.294,2601.7,2601.5,16.985813]
[1749122760534,10.13770186,2601.7,2601.4,16.0]
[1749122760732,10.13770186,2601.7,2601.6,10.0]
[1749122761027,6.294,2601.7,2601.5,11.858685]
[1749122761340,6.294,2601.7,2601.5,10.920518]
[1749122763180,6.294,2601.7,2601.5,3.84392799]
[1749122763357,6.294,2601.7,2601.6,10.0]
[1749122764088,3.0,2601.8,2601.6,13.84371303]
[1749122764307,3.0,2601.8,2601.7,30.06603069]
[1749122764585,9.289,2601.8,2601.7,30.06603069]
[1749122765393,9.288,2601.8,2601.7,30.06603069]
[1749122766086,9.288,2601.8,2601.7,19.888223]
[1749122768772,9.284,2601.8,2601.7,19.888223]
[1749122769974,3.0,2601.8,2601.7,19.888223]
[1749122770174,9.283,2601.8,2601.7,19.888223]
[1749122770378,9.283,2601.8,2601.7,23.73186369]
[1749122770541,6.283,2601.8,2601.7,19.888223]
[1749122772777,8.00635293,2602.1,2601.9,16.0]
[1749122773078,6.279,2602.0,2601.9,16.0]
[1749122773564,10.12219754,2602.0,2601.9,16.0]
[1749122774657,10.12219754,2602.0,2601.6,3.84374138]
[1749122774658,0.787,2602.3,2601.7,16.0]
[1749122774952,0.6667,2602.7,2602.4,16.0]
[1749122775156,6.281,2602.6,2602.4,16.0]
[1749122775862,6.281,2602.6,2602.3,19.84274857]
[1749122776244,6.281,2602.6,2602.4,9.936647]
[1749122776440,0.6667,2602.7,2602.4,9.936647]
[1749122776744,0.6667,2602.7,2602.6,32.20581653]
[1749122777084,6.9497,2602.7,2602.6,29.25889153]
[1749122777444,0.6667,2602.7,2602.6,29.25889153]
[1749122777785,6.9487,2602.7,2602.6,29.25889153]
[1749122777978,0.6667,2602.7,2602.6,29.25889153]
[1749122778280,6.9487,2602.7,2602.6,29.25889153]
[1749122779757,6.9487,2602.7,2602.6,25.15679153]
[1749122779956,7.64557,2602.7,2602.3,2.136449]
[1749122780152,3.84275448,2602.3,2602.2,5.3]
[1749122780357,6.283,2602.3,2602.2,4.79]
[1749122780678,6.283,2602.3,2602.2,20.79]
[1749122782997,5.75576348,2602.7,2602.2,20.79]
[1749122782998,1.36357,2602.7,2602.2,20.79]
[1749122783195,0.6667,2602.7,2602.6,16.0]
[1749122783396,0.6667,2602.7,2602.6,19.84231153]
[1749122783565,6.9617,2602.7,2602.6,16.0]
[1749122784657,10.8038639,2602.7,2602.6,16.0]
[1749122784857,14.01142298,2602.7,2602.6,16.0]
[1749122785294,0.55,2602.6,2602.3,10.0]
[1749122785593,15.64348147,2602.7,2602.2,16.0]
[1749122785594,3.37603205,2602.4,2602.2,16.0]
[1749122785791,7.0686,2602.3,2602.1,16.0]
[1749122786127,7.0686,2602.3,2602.1,19.84301852]
[1749122787330,6.294,2602.3,2602.1,19.84301852]
[1749122788191,6.294,2602.3,2602.2,3.84290215]
[1749122788577,6.294,2602.3,2602.1,19.8429652]
[1749122789006,6.294,2602.3,2602.2,2.970908]
[1749122789833,6.294,2602.3,2602.1,19.8429652]
[1749122791197,0.6667,2602.7,2602.4,16.0]
[1749122791404,0.6667,2602.7,2602.3,16.0]
[1749122791405,6.288,2602.6,2602.3,16.0]
[1749122791606,11.26521419,2602.6,2602.3,16.0]
[1749122791788,3.84256085,2602.5,2601.9,20.2188494]
[1749122791979,0.8068,2602.5,2602.1,3.84295638]
[1749122792178,0.8068,2602.5,2602.3,16.0]
[1749122792373,0.8068,2602.5,2602.1,3.84295638]
[1749122792374,8.02529803,2602.5,2602.2,10.0]
[1749122792576,8.02529803,2602.5,2601.7,0.51]
[1749122792577,3.37603205,2602.3,2601.7,0.51]
[1749122792794,0.7959,2602.1,2601.7,0.51]
[1749122792991,5.83832603,2602.5,2601.7,0.51]
[1749122792992,4.63210436,2602.5,2602.0,16.0]
[1749122793195,6.291,2602.4,2602.3,10.0]
[1749122793494,6.291,2602.4,2602.2,3.8428834]
[1749122793710,0.7895,2602.5,2602.2,3.8428834]
[1749122793902,6.291,2602.4,2602.3,10.0]
[1749122794329,6.291,2602.4,2602.2,3.8428834]
[1749122794526,6.29,2602.3,2602.2,19.8428834]
[1749122794840,6.29,2602.3,2602.2,49.8428834]
[1749122795199,4.50890945,2602.7,2602.2,49.8428834]
[1749122795200,1.4787,2602.7,2602.3,16.0]
[1749122795405,6.289,2602.6,2602.5,20.332963]
[1749122795627,6.289,2602.6,2602.5,16.0]
[1749122795839,6.292,2602.6,2602.5,16.0]
[1749122796343,6.292,2602.6,2602.3,19.8427075]
[1749122796538,4.50891171,2602.7,2602.5,16.0]
[1749122796700,6.291,2602.5,2602.3,16.0]
[1749122798734,7.0463,2602.5,2602.0,10.0]
[1749122798908,10.88877394,2602.5,2602.2,16.0]
[1749122799743,10.88877394,2602.5,2602.1,3.84304021]
[1749122799918,9.01549934,2602.5,2602.2,10.0]
[1749122800112,12.85803325,2602.5,2602.1,5.027678]
[1749122800312,12.85803325,2602.5,2602.2,10.0]
[1749122800513,12.85803325,2602.5,2602.0,19.84307869]
[1749122800514,12.85803325,2602.5,2602.1,7.600635]
[1749122800730,12.85803325,2602.5,2602.0,19.84307869]
[1749122800731,12.85803325,2602.5,2602.2,10.0]
[1749122801151,7.21865435,2602.4,2602.2,10.0]
[1749122801349,3.84297849,2602.2,2601.9,0.37920167]
[1749122801551,6.289,2602.1,2601.7,0.51]
[1749122801751,6.289,2602.1,2601.8,23.08943565]
[1749122801752,7.0851,2602.1,2601.8,23.08943565]
[1749122801916,7.0851,2602.1,2602.0,10.0]
[1749122802643,7.0851,2602.1,2601.9,3.269664]
[1749122803118,7.0851,2602.1,2602.0,10.0]
[1749122803318,7.0851,2602.1,2601.9,12.443572]
[1749122803851,7.0851,2602.1,2601.9,16.0]
[1749122804565,7.0851,2602.1,2601.8,16.0]
[1749122804743,3.37603205,2602.0,2601.6,16.0]
[1749122804935,3.84337861,2601.9,2601.6,16.0]
[1749122805143,6.287,2601.8,2601.6,19.84374455]
[1749122805673,6.287,2601.8,2601.6,16.0]
[1749122805847,6.287,2601.8,2601.6,19.84378037]
[1749122806016,6.287,2601.8,2601.7,7.473668]
[1749122806711,6.287,2601.8,2601.6,16.0]
[1749122807154,3.84364069,2601.7,2601.6,16.0]
[1749122807363,9.66303205,2601.8,2601.4,19.84406672]
[1749122807532,11.9483017,2601.8,2601.4,2.967909]
[1749122807727,11.9483017,2601.8,2601.4,3.84406345]
[1749122807954,11.9483017,2601.8,2601.5,10.0]
[1749122808255,8.10474327,2601.8,2601.5,13.84392474]
[1749122808458,6.293,2601.7,2601.6,15.90861472]
[1749122808970,7.793,2601.7,2601.6,15.90861472]
[1749122810830,7.793,2601.7,2601.6,11.06567672]
[1749122811267,1.5,2601.7,2601.6,11.06567672]
[1749122811472,7.791,2601.7,2601.6,11.06567672]
[1749122813758,7.791,2601.7,2601.5,10.0]
[1749122814073,1.5,2601.7,2601.6,40.17207943]
[1749122814232,7.788,2601.7,2601.6,40.17207943]
[1749122814834,0.7704,2602.1,2601.7,16.0]
[1749122815034,6.287,2602.0,2601.9,31.910087]
[1749122815234,6.287,2602.0,2601.9,31.294927]
[1749122815660,0.7704,2602.1,2601.9,16.0]
[1749122815968,6.286,2602.0,2601.9,23.188446]
[1749122816170,6.286,2602.0,2601.9,16.0]
[1749122816478,14.0347766,2602.0,2601.9,16.0]
[1749122816643,10.96627906,2602.0,2601.5,19.84391328]
[1749122817380,14.80954156,2602.0,2601.5,29.611244]
[1749122817573,14.80954156,2602.0,2601.6,16.0]
[1749122817752,14.80954156,2602.0,2601.5,19.84387528]
[1749122818154,0.55,2601.9,2601.5,13.457244]
[1749122818355,6.288,2601.8,2601.5,13.457244]
[1749122818775,6.288,2601.8,2601.4,16.38715819]
[1749122818776,0.7681,2601.7,2601.4,16.38715819]
[1749122818986,7.788,2601.6,2601.4,16.38715819]
[1749122819582,7.788,2601.6,2601.4,16.0]
[1749122820852,8.44737906,2601.6,2601.2,20.35430692]
[1749122821047,12.29123086,2601.6,2601.4,16.0]
[1749122821248,12.29125141,2601.6,2601.2,0.51]
[1749122821451,8.44737906,2601.6,2601.3,17.89239011]
[1749122821654,7.788,2601.6,2601.3,3.84418711]
[1749122821852,1.5,2601.6,2601.5,3.84393619]
[1749122822072,7.787,2601.6,2601.5,33.84393619]
[1749122823284,7.787,2601.6,2601.5,13.84393619]
[1749122823488,7.787,2601.6,2601.5,6.05877819]
[1749122824202,7.785,2601.6,2601.5,6.05877819]
[1749122825206,7.785,2601.6,2601.5,2.214842]
[1749122825497,7.785,2601.6,2601.5,18.214842]
[1749122825796,7.785,2601.6,2601.5,18.060842]
[1749122825993,7.785,2601.6,2601.3,19.84416081]
[1749122826199,8.5927,2601.6,2601.5,16.0]
[1749122826384,8.5927,2601.6,2601.3,19.84416081]
[1749122827473,8.5927,2601.6,2601.3,16.0]
[1749122827808,8.5927,2601.6,2601.2,4.73799892]
[1749122827809,13.54178463,2601.6,2601.2,0.51]
[1749122827965,3.84423173,2601.3,2601.2,0.51]
[1749122828286,3.84423173,2601.3,2601.0,4.098372]
[1749122828287,10.90613173,2601.3,2601.0,4.098372]
[1749122828496,10.90613173,2601.3,2601.1,10.0]
[1749122828801,7.0619,2601.3,2601.0,7.876324]
[1749122829005,7.0619,2601.3,2601.0,3.84464486]
[1749122829192,7.0619,2601.3,2601.1,10.0]
[1749122829592,10.90613416,2601.3,2601.1,10.0]
[1749122829793,10.90613416,2601.3,2601.0,3.445836]
[1749122829992,10.90613416,2601.3,2601.1,10.0]
[1749122830302,10.90613416,2601.3,2600.9,17.07781578]
[1749122830509,10.90613416,2601.3,2601.0,2.157678]
[1749122830695,7.0619,2601.3,2601.0,2.157678]
[1749122831287,7.0619,2601.3,2601.1,10.0]
[1749122831637,7.0619,2601.3,2601.0,18.157678]
[1749122831923,7.0619,2601.3,2600.7,3.84506668]
[1749122831924,3.84452731,2601.1,2600.7,12.415097]
[1749122832228,6.282,2601.0,2600.8,16.0]
[1749122832419,6.282,2601.0,2600.8,10.0]
[1749122832724,0.7948,2600.9,2600.7,16.0]
[1749122833024,6.281,2600.8,2600.7,26.932878]
[1749122833184,6.281,2600.8,2600.7,18.932878]
[1749122833385,6.281,2600.8,2600.7,14.77799662]
[1749122835241,0.7948,2600.9,2600.7,14.77794257]
[1749122835417,6.28,2600.8,2600.7,14.77794257]
[1749122836326,6.28,2600.8,2600.7,10.932878]